[Event "Titled Tuesday Blitz July 11 Late 2023"]
[White "whiteglovethief"]
[Black "Piesik, Piotr"]
[BlackFideId "1136194"]
[WhiteElo "2457"]
[BlackElo "2606"]
[Result "0-1"]
[Round "3"]
[TimeControl "180+2"]
[Date "2023.07.11"]
[WhiteClock "0:00:10"]
[BlackClock "0:00:17"]
[Board "82"]

1. d4 {[%clk 0:02:56]}  c5 {[%clk 0:02:59]} 2. dxc5 {[%clk 0:02:56]}  e6 {[%clk 0:03:00]} 3. Nc3 {[%clk 0:02:57]}  Bxc5 {[%clk 0:03:00]} 4. e4 {[%clk 0:02:57]}  Nc6 {[%clk 0:02:59]} 5. Bd3 {[%clk 0:02:58]}  a6 {[%clk 0:02:59]} 6. Nf3 {[%clk 0:02:58]}  d6 {[%clk 0:02:58]} 7. O-O {[%clk 0:02:57]}  b5 {[%clk 0:02:58]} 8. Qe2 {[%clk 0:02:55]}  Qc7 {[%clk 0:02:56]} 9. Bf4 {[%clk 0:02:51]}  Ne5 {[%clk 0:02:56]} 10. Bg3 {[%clk 0:02:50]}  Nf6 {[%clk 0:02:55]} 11. Nd2 {[%clk 0:02:48]}  O-O {[%clk 0:02:53]} 12. Kh1 {[%clk 0:02:48]}  b4 {[%clk 0:02:50]} 13. Na4 {[%clk 0:02:42]}  Bd4 {[%clk 0:02:46]} 14. Nb3 {[%clk 0:02:33]}  Ba7 {[%clk 0:02:44]} 15. f4 {[%clk 0:02:30]}  Nxd3 {[%clk 0:02:44]} 16. cxd3 {[%clk 0:02:26]}  Bd7 {[%clk 0:02:43]} 17. Rac1 {[%clk 0:02:22]}  Qb7 {[%clk 0:02:39]} 18. e5 {[%clk 0:02:19]}  Nd5 {[%clk 0:02:30]} 19. Nc3 {[%clk 0:02:12]}  bxc3 {[%clk 0:02:30]} 20. bxc3 {[%clk 0:02:13]}  dxe5 {[%clk 0:02:29]} 21. fxe5 {[%clk 0:02:12]}  Ne3 {[%clk 0:02:23]} 22. Rf3 {[%clk 0:02:06]}  Nf5 {[%clk 0:02:20]} 23. Bf4 {[%clk 0:01:43]}  Bc6 {[%clk 0:02:20]} 24. Rh3 {[%clk 0:01:43]}  Rfd8 {[%clk 0:01:46]} 25. d4 {[%clk 0:01:36]}  Bb6 {[%clk 0:01:37]} 26. Rb1 {[%clk 0:01:31]}  Qd7 {[%clk 0:01:23]} 27. Qh5 {[%clk 0:01:27]}  h6 {[%clk 0:01:22]} 28. Nd2 {[%clk 0:01:14]}  Qd5 {[%clk 0:01:12]} 29. Rg1 {[%clk 0:01:03]}  Ba5 {[%clk 0:00:58]} 30. Nf1 {[%clk 0:00:54]}  Qe4 {[%clk 0:00:55]} 31. Bd2 {[%clk 0:00:43]}  Bb5 {[%clk 0:00:47]} 32. Ng3 {[%clk 0:00:41]}  Nxg3+ {[%clk 0:00:46]} 33. Rxg3 {[%clk 0:00:42]}  Kf8 {[%clk 0:00:40]} 34. Bxh6 {[%clk 0:00:20]}  gxh6 {[%clk 0:00:40]} 35. Qxh6+ {[%clk 0:00:20]}  Ke8 {[%clk 0:00:40]} 36. Qf6 {[%clk 0:00:18]}  Qf5 {[%clk 0:00:27]} 37. Qh4 {[%clk 0:00:11]}  Kd7 {[%clk 0:00:24]} 38. Rf3 {[%clk 0:00:11]}  Rh8 {[%clk 0:00:22]} 39. Qf2 {[%clk 0:00:09]}  Rxh2+ {[%clk 0:00:17]} 40. Kxh2 {[%clk 0:00:10]}  Rh8+ {[%clk 0:00:17]} 41. Kg3 {[%clk 0:00:10]}  Qg5# {[%clk 0:00:17]} 0-1


[Site "https://www.chess.com"]

[Event "Titled Tuesday Blitz July 11 Late 2023"]
[White "Ganiev, Roman"]
[Black "KorolDimitriy75"]
[WhiteFideId "4131452"]
[WhiteElo "2604"]
[BlackElo "2460"]
[Result "1-0"]
[Round "3"]
[TimeControl "180+2"]
[Date "2023.07.11"]
[WhiteClock "0:01:39"]
[BlackClock "0:00:07"]
[Board "83"]

1. e4 {[%clk 0:02:55]}  c5 {[%clk 0:03:00]} 2. Nf3 {[%clk 0:02:45]}  d6 {[%clk 0:03:00]} 3. d4 {[%clk 0:02:45]}  cxd4 {[%clk 0:03:01]} 4. Nxd4 {[%clk 0:02:46]}  Nf6 {[%clk 0:03:01]} 5. Nc3 {[%clk 0:02:46]}  g6 {[%clk 0:03:01]} 6. Be2 {[%clk 0:02:45]}  Bg7 {[%clk 0:03:02]} 7. O-O {[%clk 0:02:46]}  O-O {[%clk 0:03:02]} 8. Be3 {[%clk 0:02:46]}  Nc6 {[%clk 0:03:02]} 9. Qd2 {[%clk 0:02:46]}  d5 {[%clk 0:03:01]} 10. exd5 {[%clk 0:02:46]}  Nb4 {[%clk 0:03:00]} 11. Bf3 {[%clk 0:02:44]}  Nbxd5 {[%clk 0:02:55]} 12. Nxd5 {[%clk 0:02:45]}  Nxd5 {[%clk 0:02:55]} 13. Bh6 {[%clk 0:02:45]}  e5 {[%clk 0:02:48]} 14. Bxg7 {[%clk 0:02:33]}  Kxg7 {[%clk 0:02:38]} 15. Bxd5 {[%clk 0:02:34]}  exd4 {[%clk 0:02:27]} 16. Qxd4+ {[%clk 0:02:34]}  Kg8 {[%clk 0:02:22]} 17. Rad1 {[%clk 0:02:34]}  Qa5 {[%clk 0:02:18]} 18. Bb3 {[%clk 0:02:32]}  Bf5 {[%clk 0:02:17]} 19. Qd5 {[%clk 0:02:26]}  Qb6 {[%clk 0:02:13]} 20. Qd6 {[%clk 0:02:26]}  Qa5 {[%clk 0:02:10]} 21. Rd5 {[%clk 0:02:25]}  Rfd8 {[%clk 0:01:45]} 22. Qxg6+ {[%clk 0:02:24]}  hxg6 {[%clk 0:01:43]} 23. Rxa5 {[%clk 0:02:25]}  Rd2 {[%clk 0:01:41]} 24. Rc5 {[%clk 0:02:22]}  a5 {[%clk 0:01:27]} 25. a4 {[%clk 0:02:14]}  Rc8 {[%clk 0:01:08]} 26. Rxc8+ {[%clk 0:02:10]}  Bxc8 {[%clk 0:01:08]} 27. h3 {[%clk 0:01:57]}  Be6 {[%clk 0:01:00]} 28. Bxe6 {[%clk 0:01:54]}  fxe6 {[%clk 0:01:01]} 29. Rc1 {[%clk 0:01:53]}  Kf7 {[%clk 0:01:00]} 30. Kf1 {[%clk 0:01:54]}  Ke7 {[%clk 0:00:57]} 31. Ke1 {[%clk 0:01:55]}  Rd4 {[%clk 0:00:56]} 32. b3 {[%clk 0:01:55]}  Re4+ {[%clk 0:00:52]} 33. Kf1 {[%clk 0:01:55]}  Rd4 {[%clk 0:00:52]} 34. Ke2 {[%clk 0:01:55]}  Re4+ {[%clk 0:00:47]} 35. Kd3 {[%clk 0:01:56]}  Re5 {[%clk 0:00:46]} 36. f4 {[%clk 0:01:50]}  Rd5+ {[%clk 0:00:46]} 37. Ke3 {[%clk 0:01:50]}  e5 {[%clk 0:00:41]} 38. fxe5 {[%clk 0:01:41]}  Rxe5+ {[%clk 0:00:41]} 39. Kf3 {[%clk 0:01:42]}  Rd5 {[%clk 0:00:33]} 40. Re1+ {[%clk 0:01:42]}  Kf6 {[%clk 0:00:33]} 41. Re4 {[%clk 0:01:40]}  Rd2 {[%clk 0:00:30]} 42. Rc4 {[%clk 0:01:40]}  g5 {[%clk 0:00:23]} 43. g3 {[%clk 0:01:38]}  Rh2 {[%clk 0:00:20]} 44. Kg4 {[%clk 0:01:38]}  Rg2 {[%clk 0:00:16]} 45. Rc5 {[%clk 0:01:37]}  b6 {[%clk 0:00:13]} 46. Rf5+ {[%clk 0:01:38]}  Ke6 {[%clk 0:00:13]} 47. Rxg5 {[%clk 0:01:38]}  Rxc2 {[%clk 0:00:13]} 48. Rg6+ {[%clk 0:01:38]}  Kd5 {[%clk 0:00:13]} 49. Rxb6 {[%clk 0:01:39]}  Kc5 {[%clk 0:00:12]} 50. Rb5+ {[%clk 0:01:39]}  Kc6 {[%clk 0:00:12]} 51. Rxa5 {[%clk 0:01:40]}  Rc3 {[%clk 0:00:07]} 52. Rb5 {[%clk 0:01:39]} 1-0


[Site "https://www.chess.com"]

[Event "Titled Tuesday Blitz July 11 Late 2023"]
[White "Le Goff, Ronan"]
[Black "Chen, Justin"]
[WhiteFideId "612073"]
[BlackFideId "2098199"]
[WhiteElo "2453"]
[BlackElo "2603"]
[Result "0-1"]
[Round "3"]
[TimeControl "180+2"]
[Date "2023.07.11"]
[WhiteClock "0:01:01"]
[BlackClock "0:00:29"]
[Board "84"]

1. d4 {[%clk 0:03:00]}  Nf6 {[%clk 0:02:59]} 2. c4 {[%clk 0:02:58]}  e6 {[%clk 0:02:59]} 3. Nf3 {[%clk 0:02:58]}  d5 {[%clk 0:02:58]} 4. Nc3 {[%clk 0:02:57]}  Bb4 {[%clk 0:02:58]} 5. cxd5 {[%clk 0:02:52]}  exd5 {[%clk 0:02:58]} 6. Bd2 {[%clk 0:02:52]}  O-O {[%clk 0:02:57]} 7. Rc1 {[%clk 0:02:51]}  c6 {[%clk 0:02:54]} 8. e3 {[%clk 0:02:50]}  Bf5 {[%clk 0:02:52]} 9. Be2 {[%clk 0:02:49]}  Nbd7 {[%clk 0:02:52]} 10. O-O {[%clk 0:02:49]}  Re8 {[%clk 0:02:52]} 11. Qb3 {[%clk 0:02:49]}  Bxc3 {[%clk 0:02:47]} 12. bxc3 {[%clk 0:02:48]}  b5 {[%clk 0:02:47]} 13. Rfd1 {[%clk 0:02:44]}  Ne4 {[%clk 0:02:46]} 14. Be1 {[%clk 0:02:44]}  Nb6 {[%clk 0:02:45]} 15. Nd2 {[%clk 0:02:43]}  Nd6 {[%clk 0:02:40]} 16. Qb2 {[%clk 0:02:34]}  Qf6 {[%clk 0:02:39]} 17. Nb3 {[%clk 0:02:33]}  Qg6 {[%clk 0:02:14]} 18. Nc5 {[%clk 0:02:30]}  Nbc4 {[%clk 0:02:09]} 19. Qa1 {[%clk 0:02:18]}  Ne4 {[%clk 0:02:05]} 20. Bf1 {[%clk 0:02:15]}  Nxc5 {[%clk 0:02:05]} 21. dxc5 {[%clk 0:02:13]}  h5 {[%clk 0:02:01]} 22. Rd4 {[%clk 0:02:12]}  Ne5 {[%clk 0:01:57]} 23. a4 {[%clk 0:02:11]}  Nf3+ {[%clk 0:01:57]} 24. Kh1 {[%clk 0:02:10]}  Nxd4 {[%clk 0:01:52]} 25. cxd4 {[%clk 0:02:11]}  a6 {[%clk 0:01:52]} 26. Ba5 {[%clk 0:02:07]}  Bd3 {[%clk 0:01:38]} 27. Qc3 {[%clk 0:02:02]}  Bxf1 {[%clk 0:01:37]} 28. Rxf1 {[%clk 0:02:03]}  Qe4 {[%clk 0:01:32]} 29. h3 {[%clk 0:02:01]}  f5 {[%clk 0:01:32]} 30. Bc7 {[%clk 0:01:59]}  Re7 {[%clk 0:01:25]} 31. Bd6 {[%clk 0:01:55]}  Rb7 {[%clk 0:01:24]} 32. Ra1 {[%clk 0:01:49]}  a5 {[%clk 0:01:14]} 33. axb5 {[%clk 0:01:39]}  Rxb5 {[%clk 0:01:15]} 34. Kh2 {[%clk 0:01:36]}  a4 {[%clk 0:01:12]} 35. Ra3 {[%clk 0:01:34]}  Qb1 {[%clk 0:01:10]} 36. e4 {[%clk 0:01:28]}  Rb3 {[%clk 0:01:00]} 37. Rxb3 {[%clk 0:01:27]}  Qxb3 {[%clk 0:00:58]} 38. Qc1 {[%clk 0:01:27]}  dxe4 {[%clk 0:00:57]} 39. Qg5 {[%clk 0:01:26]}  a3 {[%clk 0:00:46]} 40. Be5 {[%clk 0:01:22]}  Qf7 {[%clk 0:00:44]} 41. d5 {[%clk 0:01:22]}  cxd5 {[%clk 0:00:43]} 42. Ba1 {[%clk 0:01:22]}  a2 {[%clk 0:00:37]} 43. c6 {[%clk 0:01:22]}  Kh7 {[%clk 0:00:34]} 44. Qg3 {[%clk 0:01:17]}  Rc8 {[%clk 0:00:31]} 45. Qc3 {[%clk 0:01:13]}  d4 {[%clk 0:00:31]} 46. Qxd4 {[%clk 0:01:09]}  Rxc6 {[%clk 0:00:32]} 47. g3 {[%clk 0:01:01]}  Rc1 {[%clk 0:00:29]} 0-1


[Site "https://www.chess.com"]

[Event "Titled Tuesday Blitz July 11 Late 2023"]
[White "Zavgorodniy, Sergiy"]
[Black "Jimenez Ruano, Adrian"]
[WhiteFideId "14110148"]
[BlackFideId "22276050"]
[WhiteElo "2593"]
[BlackElo "2446"]
[Result "1-0"]
[Round "3"]
[TimeControl "180+2"]
[Date "2023.07.11"]
[WhiteClock "0:01:32"]
[BlackClock "0:00:00"]
[Board "86"]

1. d4 {[%clk 0:02:54]}  Nf6 {[%clk 0:02:53]} 2. c4 {[%clk 0:02:54]}  g6 {[%clk 0:02:54]} 3. Nc3 {[%clk 0:02:51]}  d5 {[%clk 0:02:54]} 4. cxd5 {[%clk 0:02:51]}  Nxd5 {[%clk 0:02:55]} 5. e4 {[%clk 0:02:51]}  Nxc3 {[%clk 0:02:55]} 6. bxc3 {[%clk 0:02:52]}  Bg7 {[%clk 0:02:56]} 7. Nf3 {[%clk 0:02:53]}  c5 {[%clk 0:02:57]} 8. Be3 {[%clk 0:02:53]}  Nc6 {[%clk 0:02:53]} 9. Qd2 {[%clk 0:02:53]}  O-O {[%clk 0:02:49]} 10. Rc1 {[%clk 0:02:52]}  Qc7 {[%clk 0:02:38]} 11. d5 {[%clk 0:02:51]}  Na5 {[%clk 0:02:17]} 12. c4 {[%clk 0:02:50]}  f5 {[%clk 0:02:12]} 13. exf5 {[%clk 0:02:35]}  Bxf5 {[%clk 0:02:11]} 14. Bd3 {[%clk 0:02:33]}  Bg4 {[%clk 0:02:00]} 15. Ng5 {[%clk 0:02:21]}  b6 {[%clk 0:01:44]} 16. h3 {[%clk 0:02:21]}  Bd7 {[%clk 0:01:45]} 17. O-O {[%clk 0:02:13]}  Nb7 {[%clk 0:01:43]} 18. Qe2 {[%clk 0:01:52]}  Be5 {[%clk 0:01:38]} 19. Nxh7 {[%clk 0:01:46]}  Kxh7 {[%clk 0:00:18]} 20. Qh5+ {[%clk 0:01:46]}  Kg8 {[%clk 0:00:18]} 21. Bxg6 {[%clk 0:01:38]}  Rf4 {[%clk 0:00:03]} 22. Qh7+ {[%clk 0:01:32]}  Kf8 {[%clk 0:00:00]} 23. Bxf4 {[%clk 0:01:32]} 1-0


[Site "https://www.chess.com"]

[Event "Titled Tuesday Blitz July 11 Late 2023"]
[White "NLLO777"]
[Black "Matt, Fabian"]
[BlackFideId "1623303"]
[WhiteElo "2587"]
[BlackElo "2445"]
[Result "1-0"]
[Round "3"]
[TimeControl "180+2"]
[Date "2023.07.11"]
[WhiteClock "0:00:21"]
[BlackClock "0:00:10"]
[Board "87"]

1. d4 {[%clk 0:03:00]}  Nf6 {[%clk 0:02:58]} 2. c4 {[%clk 0:03:01]}  e6 {[%clk 0:02:58]} 3. Nf3 {[%clk 0:03:01]}  d5 {[%clk 0:02:59]} 4. g3 {[%clk 0:03:01]}  Be7 {[%clk 0:02:56]} 5. Bg2 {[%clk 0:03:01]}  O-O {[%clk 0:02:57]} 6. O-O {[%clk 0:03:01]}  c6 {[%clk 0:02:55]} 7. Nbd2 {[%clk 0:03:01]}  Nbd7 {[%clk 0:02:54]} 8. Qc2 {[%clk 0:03:01]}  b6 {[%clk 0:02:47]} 9. e4 {[%clk 0:03:00]}  Bb7 {[%clk 0:02:47]} 10. cxd5 {[%clk 0:02:54]}  cxd5 {[%clk 0:02:43]} 11. e5 {[%clk 0:02:55]}  Ne8 {[%clk 0:02:23]} 12. Nb1 {[%clk 0:02:54]}  Rc8 {[%clk 0:02:19]} 13. Nc3 {[%clk 0:02:55]}  g6 {[%clk 0:02:17]} 14. h4 {[%clk 0:02:55]}  Ng7 {[%clk 0:02:16]} 15. a4 {[%clk 0:02:36]}  Nb8 {[%clk 0:02:12]} 16. Bh6 {[%clk 0:02:19]}  Nc6 {[%clk 0:02:10]} 17. Rfc1 {[%clk 0:02:16]}  Re8 {[%clk 0:02:07]} 18. Qd2 {[%clk 0:02:11]}  Nf5 {[%clk 0:02:02]} 19. Bg5 {[%clk 0:02:10]}  h5 {[%clk 0:01:53]} 20. Bh3 {[%clk 0:02:01]}  Bxg5 {[%clk 0:01:47]} 21. hxg5 {[%clk 0:01:50]}  Ng7 {[%clk 0:01:44]} 22. Nb5 {[%clk 0:01:46]}  Re7 {[%clk 0:01:36]} 23. Nd6 {[%clk 0:01:43]}  Na5 {[%clk 0:01:28]} 24. Nxc8 {[%clk 0:01:41]}  Bxc8 {[%clk 0:01:26]} 25. Qb4 {[%clk 0:01:33]}  Ba6 {[%clk 0:01:22]} 26. Bf1 {[%clk 0:01:30]}  Bxf1 {[%clk 0:01:19]} 27. Kxf1 {[%clk 0:01:31]}  Nf5 {[%clk 0:01:18]} 28. Rc3 {[%clk 0:01:24]}  Qd7 {[%clk 0:01:02]} 29. Rac1 {[%clk 0:01:21]}  Kg7 {[%clk 0:01:02]} 30. Nh4 {[%clk 0:01:07]}  Nxh4 {[%clk 0:00:53]} 31. gxh4 {[%clk 0:01:08]}  Qb7 {[%clk 0:00:53]} 32. b3 {[%clk 0:00:57]}  Qd7 {[%clk 0:00:33]} 33. Ke2 {[%clk 0:00:48]}  Qb7 {[%clk 0:00:33]} 34. Ke3 {[%clk 0:00:48]}  Qd7 {[%clk 0:00:20]} 35. R1c2 {[%clk 0:00:46]}  Nb7 {[%clk 0:00:19]} 36. Qb5 {[%clk 0:00:38]}  Qxb5 {[%clk 0:00:11]} 37. axb5 {[%clk 0:00:38]}  Na5 {[%clk 0:00:11]} 38. Rc7 {[%clk 0:00:36]}  Re8 {[%clk 0:00:11]} 39. R2c3 {[%clk 0:00:32]}  Ra8 {[%clk 0:00:11]} 40. Re7 {[%clk 0:00:21]}  Kf8 {[%clk 0:00:10]} 41. Rcc7 {[%clk 0:00:21]}  a6 {[%clk 0:00:11]} 42. Rxf7+ {[%clk 0:00:21]}  Kg8 {[%clk 0:00:11]} 43. Rg7+ {[%clk 0:00:22]}  Kh8 {[%clk 0:00:12]} 44. Rh7+ {[%clk 0:00:21]}  Kg8 {[%clk 0:00:11]} 45. Rcg7+ {[%clk 0:00:22]}  Kf8 {[%clk 0:00:12]} 46. Rxg6 {[%clk 0:00:21]}  axb5 {[%clk 0:00:12]} 47. Rh8+ {[%clk 0:00:20]}  Kf7 {[%clk 0:00:10]} 48. Rf6+ {[%clk 0:00:21]} 1-0


[Site "https://www.chess.com"]

[Event "Titled Tuesday Blitz July 11 Late 2023"]
[White "Sztokbant, Bernardo Vainzoff"]
[Black "Janturin, Artur"]
[WhiteFideId "2115956"]
[BlackFideId "4130022"]
[WhiteElo "2441"]
[BlackElo "2583"]
[Result "0-1"]
[Round "3"]
[TimeControl "180+2"]
[Date "2023.07.11"]
[WhiteClock "0:00:00"]
[BlackClock "0:00:09"]
[Board "88"]

1. b3 {[%clk 0:03:00]}  a5 {[%clk 0:02:57]} 2. a4 {[%clk 0:02:56]}  d5 {[%clk 0:02:56]} 3. e3 {[%clk 0:02:55]}  Nf6 {[%clk 0:02:56]} 4. Bb2 {[%clk 0:02:55]}  Bf5 {[%clk 0:02:56]} 5. Nf3 {[%clk 0:02:54]}  e6 {[%clk 0:02:56]} 6. Na3 {[%clk 0:02:53]}  h6 {[%clk 0:02:53]} 7. Be2 {[%clk 0:02:52]}  Be7 {[%clk 0:02:52]} 8. O-O {[%clk 0:02:51]}  O-O {[%clk 0:02:52]} 9. Nb5 {[%clk 0:02:49]}  c6 {[%clk 0:02:51]} 10. Nbd4 {[%clk 0:02:49]}  Bh7 {[%clk 0:02:52]} 11. Ne5 {[%clk 0:02:33]}  Nbd7 {[%clk 0:02:27]} 12. Nxd7 {[%clk 0:02:26]}  Nxd7 {[%clk 0:02:25]} 13. f4 {[%clk 0:02:27]}  Bf6 {[%clk 0:02:16]} 14. Qc1 {[%clk 0:02:23]}  Qc7 {[%clk 0:02:04]} 15. Nf3 {[%clk 0:02:19]}  Bxb2 {[%clk 0:02:00]} 16. Qxb2 {[%clk 0:02:20]}  Rae8 {[%clk 0:01:52]} 17. c4 {[%clk 0:02:20]}  Nc5 {[%clk 0:01:48]} 18. Rac1 {[%clk 0:02:12]}  Qb6 {[%clk 0:01:39]} 19. Qd4 {[%clk 0:01:59]}  Nd7 {[%clk 0:01:23]} 20. cxd5 {[%clk 0:01:51]}  exd5 {[%clk 0:01:21]} 21. Rc3 {[%clk 0:01:48]}  Qxd4 {[%clk 0:01:04]} 22. Nxd4 {[%clk 0:01:49]}  Nf6 {[%clk 0:01:01]} 23. Bf3 {[%clk 0:01:46]}  Be4 {[%clk 0:00:53]} 24. Rc5 {[%clk 0:01:36]}  Ra8 {[%clk 0:00:52]} 25. Rfc1 {[%clk 0:01:31]}  Nd7 {[%clk 0:00:48]} 26. R5c3 {[%clk 0:01:30]}  Bh7 {[%clk 0:00:47]} 27. Kf2 {[%clk 0:01:19]}  Rfe8 {[%clk 0:00:46]} 28. g4 {[%clk 0:01:14]}  Be4 {[%clk 0:00:42]} 29. Be2 {[%clk 0:01:07]}  g5 {[%clk 0:00:32]} 30. Kg3 {[%clk 0:00:56]}  Kg7 {[%clk 0:00:23]} 31. Rf1 {[%clk 0:00:48]}  c5 {[%clk 0:00:19]} 32. Nb5 {[%clk 0:00:47]}  Re6 {[%clk 0:00:13]} 33. Nc7 {[%clk 0:00:36]}  Rae8 {[%clk 0:00:07]} 34. Nxe8+ {[%clk 0:00:36]}  Rxe8 {[%clk 0:00:07]} 35. Bb5 {[%clk 0:00:36]}  Re7 {[%clk 0:00:07]} 36. Bxd7 {[%clk 0:00:36]}  Rxd7 {[%clk 0:00:08]} 37. Rxc5 {[%clk 0:00:34]}  d4 {[%clk 0:00:08]} 38. fxg5 {[%clk 0:00:31]}  dxe3 {[%clk 0:00:07]} 39. gxh6+ {[%clk 0:00:31]}  Kxh6 {[%clk 0:00:07]} 40. dxe3 {[%clk 0:00:30]}  Rd3 {[%clk 0:00:07]} 41. Rxa5 {[%clk 0:00:17]}  Rxb3 {[%clk 0:00:06]} 42. Rb5 {[%clk 0:00:09]}  Ra3 {[%clk 0:00:05]} 43. Rxf7 {[%clk 0:00:06]}  Bc6 {[%clk 0:00:04]} 44. Rh5+ {[%clk 0:00:05]}  Kg6 {[%clk 0:00:04]} 45. Rf4 {[%clk 0:00:06]}  Rxe3+ {[%clk 0:00:04]} 46. Kf2 {[%clk 0:00:05]}  Ra3 {[%clk 0:00:03]} 47. a5 {[%clk 0:00:04]}  Ra2+ {[%clk 0:00:04]} 48. Ke3 {[%clk 0:00:04]}  Ra3+ {[%clk 0:00:04]} 49. Kf2 {[%clk 0:00:04]}  Ra2+ {[%clk 0:00:04]} 50. Kg3 {[%clk 0:00:04]}  Ra3+ {[%clk 0:00:05]} 51. Kh4 {[%clk 0:00:04]}  Bg2 {[%clk 0:00:05]} 52. Rg5+ {[%clk 0:00:04]}  Kh7 {[%clk 0:00:04]} 53. Rf7+ {[%clk 0:00:03]}  Kh6 {[%clk 0:00:04]} 54. Rh5+ {[%clk 0:00:03]}  Kg6 {[%clk 0:00:04]} 55. Rg5+ {[%clk 0:00:01]}  Kxf7 {[%clk 0:00:04]} 56. Rf5+ {[%clk 0:00:01]}  Kg6 {[%clk 0:00:04]} 57. Rg5+ {[%clk 0:00:01]}  Kf6 {[%clk 0:00:05]} 58. Rf5+ {[%clk 0:00:01]}  Ke6 {[%clk 0:00:05]} 59. Kg5 {[%clk 0:00:02]}  Be4 {[%clk 0:00:04]} 60. Rf6+ {[%clk 0:00:02]}  Ke7 {[%clk 0:00:04]} 61. Kf4 {[%clk 0:00:01]}  Bc6 {[%clk 0:00:04]} 62. g5 {[%clk 0:00:02]}  Rxa5 {[%clk 0:00:04]} 63. h4 {[%clk 0:00:03]}  Ra4+ {[%clk 0:00:04]} 64. Kg3 {[%clk 0:00:03]}  Ra3+ {[%clk 0:00:04]} 65. Kg4 {[%clk 0:00:04]}  Ra4+ {[%clk 0:00:04]} 66. Kg3 {[%clk 0:00:04]}  Be8 {[%clk 0:00:03]} 67. Rb6 {[%clk 0:00:03]}  Bc6 {[%clk 0:00:03]} 68. h5 {[%clk 0:00:02]}  Ra5 {[%clk 0:00:03]} 69. Kf4 {[%clk 0:00:02]}  Kf7 {[%clk 0:00:03]} 70. g6+ {[%clk 0:00:01]}  Kf6 {[%clk 0:00:04]} 71. Rb4 {[%clk 0:00:01]}  Rxh5 {[%clk 0:00:02]} 72. Kg4 {[%clk 0:00:02]}  Rg5+ {[%clk 0:00:02]} 73. Kh4 {[%clk 0:00:03]}  Rxg6 {[%clk 0:00:03]} 74. Rb6 {[%clk 0:00:02]}  Rg7 {[%clk 0:00:03]} 75. Kh5 {[%clk 0:00:02]}  Rh7+ {[%clk 0:00:04]} 76. Kg4 {[%clk 0:00:02]}  Rd7 {[%clk 0:00:05]} 77. Kf4 {[%clk 0:00:03]}  Ke7 {[%clk 0:00:06]} 78. Ke5 {[%clk 0:00:02]}  Kd8 {[%clk 0:00:06]} 79. Rb2 {[%clk 0:00:02]}  Kc7 {[%clk 0:00:07]} 80. Rh2 {[%clk 0:00:03]}  Rd5+ {[%clk 0:00:07]} 81. Kf4 {[%clk 0:00:03]}  Rd7 {[%clk 0:00:08]} 82. Rh8 {[%clk 0:00:02]}  b5 {[%clk 0:00:08]} 83. Ke5 {[%clk 0:00:03]}  Re7+ {[%clk 0:00:08]} 84. Kd4 {[%clk 0:00:03]}  Re4+ {[%clk 0:00:07]} 85. Kc3 {[%clk 0:00:02]}  Rc4+ {[%clk 0:00:08]} 86. Kb3 {[%clk 0:00:02]}  Kb6 {[%clk 0:00:08]} 87. Rb8+ {[%clk 0:00:02]}  Kc5 {[%clk 0:00:08]} 88. Rh8 {[%clk 0:00:03]}  Rg4 {[%clk 0:00:08]} 89. Rh5+ {[%clk 0:00:03]}  Bd5+ {[%clk 0:00:09]} 90. Kb2 {[%clk 0:00:03]}  b4 {[%clk 0:00:09]} 91. Rh8 {[%clk 0:00:01]}  Rg2+ {[%clk 0:00:09]} 92. Kc1 {[%clk 0:00:00]}  b3 {[%clk 0:00:09]} 0-1


[Site "https://www.chess.com"]